[Event "Late-Titled-Tuesday-Blitz-February-27-2024"]
[Site "Chess.com"]
[Date "2024.02.27"]
[Round "5"]
[White "wild3000"]
[Black "ukchessbomber"]
[Result "1-0"]
[WhiteElo "2487"]
[BlackElo "2634"]
[TimeControl "180+1"]
[EndTime "14:57:04 PST"]
[Termination "wild3000 won on time"]

1. e4 {[%clk 0:02:41.2]} 1... c5 {[%clk 0:02:42.2]} 2. Nf3 {[%clk 0:02:39.9]}
2... a6 {[%clk 0:02:39.5]} 3. g3 {[%clk 0:02:39]} 3... Nc6 {[%clk 0:02:39.3]} 4.
Bg2 {[%clk 0:02:38.9]} 4... e5 {[%clk 0:02:39.7]} 5. O-O {[%clk 0:02:36.4]} 5...
d6 {[%clk 0:02:40.2]} 6. c3 {[%clk 0:02:33.9]} 6... g6 {[%clk 0:02:39.1]} 7. d4
{[%clk 0:02:33.5]} 7... cxd4 {[%clk 0:02:37.9]} 8. cxd4 {[%clk 0:02:33.4]} 8...
Bg7 {[%clk 0:02:38.8]} 9. dxe5 {[%clk 0:02:22.7]} 9... Nxe5 {[%clk 0:02:39.1]}
10. Nc3 {[%clk 0:02:17.2]} 10... Ne7 {[%clk 0:02:36.4]} 11. Nxe5 {[%clk
0:02:14]} 11... Bxe5 {[%clk 0:02:33.7]} 12. Bh6 {[%clk 0:02:11.4]} 12... Ng8
{[%clk 0:02:33]} 13. Be3 {[%clk 0:02:09.7]} 13... Nf6 {[%clk 0:02:32.2]} 14. f4
{[%clk 0:02:01.2]} 14... Bxc3 {[%clk 0:02:32.4]} 15. bxc3 {[%clk 0:02:01.8]}
15... O-O {[%clk 0:02:32.6]} 16. Bd4 {[%clk 0:02:00.6]} 16... Re8 {[%clk
0:02:32.2]} 17. f5 {[%clk 0:01:53.6]} 17... Nxe4 {[%clk 0:02:18.9]} 18. fxg6
{[%clk 0:01:48.7]} 18... hxg6 {[%clk 0:02:11.7]} 19. Qf3 {[%clk 0:01:25.9]}
19... Bf5 {[%clk 0:01:08.1]} 20. Qf4 {[%clk 0:01:16.9]} 20... Qg5 {[%clk
0:01:03]} 21. Qxg5 {[%clk 0:01:05]} 21... Nxg5 {[%clk 0:01:02.8]} 22. Bxb7
{[%clk 0:00:58.7]} 22... Rab8 {[%clk 0:00:38.9]} 23. Bg2 {[%clk 0:00:54.6]}
23... Rb2 {[%clk 0:00:30]} 24. Rae1 {[%clk 0:00:46.8]} 24... Ree2 {[%clk
0:00:17.8]} 25. Rxe2 {[%clk 0:00:46]} 25... Rxe2 {[%clk 0:00:18.7]} 26. a4
{[%clk 0:00:41.2]} 26... Nh3+ {[%clk 0:00:13.7]} 27. Kh1 {[%clk 0:00:36.9]}
27... Ng5 {[%clk 0:00:11.3]} 28. h4 {[%clk 0:00:21.2]} 28... Ne4 {[%clk
0:00:06.5]} 29. Kh2 {[%clk 0:00:16.2]} 29... Nd2 {[%clk 0:00:06.5]} 30. Rf2
{[%clk 0:00:15.1]} 30... Rxf2 {[%clk 0:00:07.1]} 31. Bxf2 {[%clk 0:00:15.2]}
31... Bc2 {[%clk 0:00:08]} 32. a5 {[%clk 0:00:15.1]} 32... Nb3 {[%clk
0:00:07.4]} 33. Bb6 {[%clk 0:00:14.7]} 33... Kf8 {[%clk 0:00:05.7]} 34. Bf1
{[%clk 0:00:14.7]} 34... Nd2 {[%clk 0:00:03]} 35. Bxa6 {[%clk 0:00:14.4]} 35...
Be4 {[%clk 0:00:03.5]} 36. Bc8 {[%clk 0:00:11.6]} 36... Nf3+ {[%clk 0:00:03.4]}
37. Kh3 {[%clk 0:00:10.4]} 37... Ne5 {[%clk 0:00:02.5]} 38. a6 {[%clk
0:00:10.3]} 38... Nc4 {[%clk 0:00:02.6]} 39. Bd4 {[%clk 0:00:09]} 39... Na5
{[%clk 0:00:01.9]} 40. a7 {[%clk 0:00:07.9]} 40... Ba8 {[%clk 0:00:02.5]} 41.
Ba6 {[%clk 0:00:07.7]} 41... Ke7 {[%clk 0:00:02.5]} 42. g4 {[%clk 0:00:07.4]}
42... Nc6 {[%clk 0:00:02.6]} 43. h5 {[%clk 0:00:07.1]} 43... gxh5 {[%clk
0:00:01.5]} 44. gxh5 {[%clk 0:00:07.4]} 44... f6 {[%clk 0:00:02.4]} 45. Kh4
{[%clk 0:00:06.9]} 45... Kf7 {[%clk 0:00:02.9]} 46. Bd3 {[%clk 0:00:06.6]} 46...
Kg7 {[%clk 0:00:02.9]} 47. Be3 {[%clk 0:00:05.8]} 47... Ne5 {[%clk 0:00:02.6]}
48. h6+ {[%clk 0:00:05.8]} 48... Kh8 {[%clk 0:00:02.3]} 49. Bf5 {[%clk
0:00:05.5]} 49... Nf3+ {[%clk 0:00:02.6]} 50. Kg3 {[%clk 0:00:05.5]} 50... Ne5
{[%clk 0:00:03.1]} 51. Kf4 {[%clk 0:00:05.2]} 51... Nc6 {[%clk 0:00:02.9]} 52.
Bd4 {[%clk 0:00:04.5]} 1-0

[Event "Late-Titled-Tuesday-Blitz-February-27-2024"]
[Site "Chess.com"]
[Date "2024.02.27"]
[Round "5"]
[White "ninguno46"]
[Black "chedimir"]
[Result "1/2-1/2"]
[WhiteElo "2584"]
[BlackElo "2465"]
[TimeControl "180+1"]
[EndTime "14:57:04 PST"]
[Termination "Game drawn by stalemate"]

1. e4 {[%clk 0:02:58.9]} 1... c5 {[%clk 0:02:59.6]} 2. Nc3 {[%clk 0:02:57.9]}
2... Nc6 {[%clk 0:02:58.1]} 3. f4 {[%clk 0:02:57.8]} 3... g6 {[%clk 0:02:57.5]}
4. Nf3 {[%clk 0:02:57.6]} 4... Bg7 {[%clk 0:02:57.4]} 5. g3 {[%clk 0:02:57.1]}
5... d6 {[%clk 0:02:55.6]} 6. Bg2 {[%clk 0:02:57]} 6... Nf6 {[%clk 0:02:53.5]}
7. d3 {[%clk 0:02:57]} 7... O-O {[%clk 0:02:53.3]} 8. h3 {[%clk 0:02:55.8]} 8...
Nd4 {[%clk 0:02:49.2]} 9. O-O {[%clk 0:02:50.1]} 9... Rb8 {[%clk 0:02:41.1]} 10.
Nxd4 {[%clk 0:02:44.6]} 10... cxd4 {[%clk 0:02:40.4]} 11. Ne2 {[%clk 0:02:45.2]}
11... e5 {[%clk 0:02:37.9]} 12. f5 {[%clk 0:02:44.3]} 12... d5 {[%clk
0:02:33.3]} 13. g4 {[%clk 0:02:07]} 13... dxe4 {[%clk 0:02:26.3]} 14. dxe4
{[%clk 0:02:07.9]} 14... gxf5 {[%clk 0:02:23.5]} 15. exf5 {[%clk 0:01:59.8]}
15... Nd5 {[%clk 0:02:21.9]} 16. g5 {[%clk 0:01:55.5]} 16... f6 {[%clk
0:02:06.4]} 17. c3 {[%clk 0:01:48.5]} 17... fxg5 {[%clk 0:02:00.4]} 18. Qb3
{[%clk 0:01:46.9]} 18... Bxf5 {[%clk 0:01:53.4]} 19. Qxd5+ {[%clk 0:01:43.3]}
19... Qxd5 {[%clk 0:01:49.2]} 20. Bxd5+ {[%clk 0:01:42.6]} 20... Kh8 {[%clk
0:01:49]} 21. Bg2 {[%clk 0:01:35]} 21... h6 {[%clk 0:01:45.5]} 22. Bd2 {[%clk
0:01:27.4]} 22... b5 {[%clk 0:01:25.8]} 23. Ng3 {[%clk 0:01:25.5]} 23... Bg6
{[%clk 0:01:24.1]} 24. cxd4 {[%clk 0:01:17.2]} 24... exd4 {[%clk 0:01:23.7]} 25.
Rxf8+ {[%clk 0:01:00.9]} 25... Rxf8 {[%clk 0:01:21.2]} 26. Nf1 {[%clk
0:00:34.3]} 26... Rc8 {[%clk 0:01:13.1]} 27. Rc1 {[%clk 0:00:32.3]} 27... Rc4
{[%clk 0:01:07.8]} 28. b3 {[%clk 0:00:30.2]} 28... Rxc1 {[%clk 0:01:06.8]} 29.
Bxc1 {[%clk 0:00:29.7]} 29... Bb1 {[%clk 0:01:06.2]} 30. a3 {[%clk 0:00:26.7]}
30... a5 {[%clk 0:00:52.3]} 31. b4 {[%clk 0:00:25.2]} 31... axb4 {[%clk
0:00:49.8]} 32. axb4 {[%clk 0:00:26.1]} 32... Bf5 {[%clk 0:00:41.6]} 33. Ng3
{[%clk 0:00:24]} 33... Be6 {[%clk 0:00:37.6]} 34. Bd2 {[%clk 0:00:24]} 34... Kg8
{[%clk 0:00:35]} 35. Ne4 {[%clk 0:00:18.7]} 35... Be5 {[%clk 0:00:32]} 36. Kf1
{[%clk 0:00:16.6]} 36... Kg7 {[%clk 0:00:29.7]} 37. Ke1 {[%clk 0:00:16.6]} 37...
Bc4 {[%clk 0:00:27.8]} 38. Bf1 {[%clk 0:00:13.3]} 38... d3 {[%clk 0:00:27.3]}
39. Bc3 {[%clk 0:00:13.2]} 39... Bxc3+ {[%clk 0:00:23.7]} 40. Nxc3 {[%clk
0:00:14.1]} 40... Kf6 {[%clk 0:00:23.8]} 41. Kd2 {[%clk 0:00:14.2]} 41... Ke5
{[%clk 0:00:22.2]} 42. Bxd3 {[%clk 0:00:14.6]} 42... Kd4 {[%clk 0:00:20.9]} 43.
Nxb5+ {[%clk 0:00:13.8]} 43... Kd5 {[%clk 0:00:17.2]} 44. Nc3+ {[%clk
0:00:12.8]} 44... Kd4 {[%clk 0:00:16.9]} 45. Bxc4 {[%clk 0:00:12.2]} 45... Kxc4
{[%clk 0:00:16.7]} 46. b5 {[%clk 0:00:12.8]} 46... Kc5 {[%clk 0:00:16.6]} 47.
Kd3 {[%clk 0:00:11.4]} 47... h5 {[%clk 0:00:16.5]} 48. Ke3 {[%clk 0:00:12]}
48... Kb6 {[%clk 0:00:14.5]} 49. Ne4 {[%clk 0:00:10.3]} 49... g4 {[%clk
0:00:11.8]} 50. h4 {[%clk 0:00:10.3]} 50... Kxb5 {[%clk 0:00:11.6]} 51. Ng3
{[%clk 0:00:10.9]} 51... Kc5 {[%clk 0:00:11.4]} 52. Kf4 {[%clk 0:00:11.8]} 52...
Kd5 {[%clk 0:00:11.8]} 53. Nxh5 {[%clk 0:00:12.7]} 53... Ke6 {[%clk 0:00:11.3]}
54. Kxg4 {[%clk 0:00:13.6]} 54... Kf7 {[%clk 0:00:11.1]} 55. Kg5 {[%clk
0:00:14.5]} 55... Kg8 {[%clk 0:00:11.3]} 56. Kh6 {[%clk 0:00:15.4]} 56... Kh8
{[%clk 0:00:11.5]} 57. Nf6 {[%clk 0:00:16.3]} 1/2-1/2

[Event "Late-Titled-Tuesday-Blitz-February-27-2024"]
[Site "Chess.com"]
[Date "2024.02.27"]
[Round "5"]
[White "ChessSwole"]
[Black "Machidon"]
[Result "1/2-1/2"]
[WhiteElo "2689"]
[BlackElo "2502"]
[TimeControl "180+1"]
[EndTime "14:57:05 PST"]
[Termination "Game drawn - insufficient material"]

1. d4 {[%clk 0:03:00.1]} 1... c5 {[%clk 0:02:47.2]} 2. d5 {[%clk 0:02:59.5]}
2... e5 {[%clk 0:02:46.8]} 3. Nc3 {[%clk 0:02:59.6]} 3... d6 {[%clk 0:02:46.7]}
4. e4 {[%clk 0:03:00]} 4... Be7 {[%clk 0:02:46.7]} 5. Nf3 {[%clk 0:02:59.8]}
5... Nf6 {[%clk 0:02:44.9]} 6. h3 {[%clk 0:02:59]} 6... O-O {[%clk 0:02:44.8]}
7. Be2 {[%clk 0:02:57.3]} 7... a6 {[%clk 0:02:42.3]} 8. a4 {[%clk 0:02:57.2]}
8... Ne8 {[%clk 0:02:42.1]} 9. Nd2 {[%clk 0:02:54.7]} 9... g6 {[%clk 0:02:41.2]}
10. Nc4 {[%clk 0:02:44.5]} 10... f5 {[%clk 0:02:30.3]} 11. Bh6 {[%clk 0:02:43]}
11... Ng7 {[%clk 0:02:29.2]} 12. exf5 {[%clk 0:02:41]} 12... gxf5 {[%clk
0:02:28.2]} 13. g4 {[%clk 0:02:40.9]} 13... Bh4 {[%clk 0:01:51.5]} 14. gxf5
{[%clk 0:02:11.1]} 14... Bxf5 {[%clk 0:01:52.4]} 15. Rh2 {[%clk 0:01:44.6]}
15... Qf6 {[%clk 0:01:43.4]} 16. Qd2 {[%clk 0:01:40.5]} 16... Bxc2 {[%clk
0:01:34.7]} 17. Bxg7 {[%clk 0:01:33.5]} 17... Bxf2+ {[%clk 0:01:34.3]} 18. Kf1
{[%clk 0:01:31.6]} 18... Kxg7 {[%clk 0:01:31.4]} 19. Kg2 {[%clk 0:01:14.8]}
19... Bg6 {[%clk 0:01:22.8]} 20. Rf1 {[%clk 0:01:14.1]} 20... Nd7 {[%clk
0:01:07.6]} 21. Kh1 {[%clk 0:01:12.2]} 21... Qh4 {[%clk 0:01:06.9]} 22. Bg4
{[%clk 0:01:05.7]} 22... Bg3 {[%clk 0:00:36.3]} 23. Rxf8 {[%clk 0:01:02.2]}
23... Nxf8 {[%clk 0:00:31.7]} 24. Nxd6 {[%clk 0:00:55.3]} 24... Bxh2 {[%clk
0:00:29.2]} 25. Kxh2 {[%clk 0:00:53.7]} 25... Rd8 {[%clk 0:00:25.8]} 26. Nxb7
{[%clk 0:00:42.5]} 26... Rb8 {[%clk 0:00:25.3]} 27. Nxc5 {[%clk 0:00:40.4]}
27... Qf6 {[%clk 0:00:21.8]} 28. N5e4 {[%clk 0:00:30.2]} 28... Qf4+ {[%clk
0:00:16.9]} 29. Qxf4 {[%clk 0:00:30.6]} 29... exf4 {[%clk 0:00:17.8]} 30. d6
{[%clk 0:00:23.5]} 30... Rxb2+ {[%clk 0:00:15.3]} 31. Kg1 {[%clk 0:00:24.1]}
31... Rb4 {[%clk 0:00:11.3]} 32. Nc5 {[%clk 0:00:06.7]} 32... Rd4 {[%clk
0:00:08.9]} 33. d7 {[%clk 0:00:06.9]} 33... h5 {[%clk 0:00:07.1]} 34. Be6 {[%clk
0:00:05.9]} 34... Kf6 {[%clk 0:00:05.9]} 35. Nd5+ {[%clk 0:00:04.7]} 35... Rxd5
{[%clk 0:00:04]} 36. Bxd5 {[%clk 0:00:05.6]} 36... Ke7 {[%clk 0:00:04.4]} 37.
Bc6 {[%clk 0:00:04.4]} 37... Bf5 {[%clk 0:00:04.4]} 38. a5 {[%clk 0:00:04.1]}
38... Nxd7 {[%clk 0:00:04.3]} 39. Bxd7 {[%clk 0:00:03.3]} 39... Bxd7 {[%clk
0:00:05.2]} 40. Nxa6 {[%clk 0:00:04.2]} 40... Bxh3 {[%clk 0:00:05.1]} 41. Nc5
{[%clk 0:00:03.6]} 41... Kd6 {[%clk 0:00:04.5]} 42. Nd3 {[%clk 0:00:02.7]} 42...
f3 {[%clk 0:00:03.6]} 43. Kf2 {[%clk 0:00:02.8]} 43... Bg4 {[%clk 0:00:03.7]}
44. a6 {[%clk 0:00:03.7]} 44... Kc7 {[%clk 0:00:04]} 45. Ne5 {[%clk 0:00:04.2]}
45... Kb6 {[%clk 0:00:04.2]} 46. Nxf3 {[%clk 0:00:04.9]} 46... Kxa6 {[%clk
0:00:03.9]} 47. Ne5 {[%clk 0:00:05.4]} 47... Kb6 {[%clk 0:00:04.3]} 48. Kg3
{[%clk 0:00:05.7]} 48... Kc5 {[%clk 0:00:04.5]} 49. Nxg4 {[%clk 0:00:06.1]}
49... hxg4 {[%clk 0:00:05.4]} 50. Kxg4 {[%clk 0:00:07]} 1/2-1/2

[Event "Late-Titled-Tuesday-Blitz-February-27-2024"]
[Site "Chess.com"]
[Date "2024.02.27"]
[Round "5"]
[White "trriinu"]
[Black "protectiago"]
[Result "1-0"]
[WhiteElo "2251"]
[BlackElo "2081"]
[TimeControl "180+1"]
[EndTime "14:57:09 PST"]
[Termination "trriinu won by checkmate"]

1. e4 {[%clk 0:03:00.9]} 1... e5 {[%clk 0:02:56.2]} 2. Nc3 {[%clk 0:02:47.7]}
2... Nc6 {[%clk 0:02:56.2]} 3. g3 {[%clk 0:02:47.7]} 3... Bc5 {[%clk 0:02:55.4]}
4. Bg2 {[%clk 0:02:48.1]} 4... d6 {[%clk 0:02:54.1]} 5. Na4 {[%clk 0:02:41.5]}
5... Bb6 {[%clk 0:02:53.6]} 6. Nxb6 {[%clk 0:02:41.7]} 6... axb6 {[%clk
0:02:54.2]} 7. Ne2 {[%clk 0:02:40.1]} 7... Nge7 {[%clk 0:02:54.1]} 8. O-O {[%clk
0:02:40.2]} 8... O-O {[%clk 0:02:54.2]} 9. d4 {[%clk 0:02:34.3]} 9... Ng6 {[%clk
0:02:51.7]} 10. h4 {[%clk 0:01:58]} 10... Bg4 {[%clk 0:02:42.8]} 11. f3 {[%clk
0:01:55.7]} 11... Bd7 {[%clk 0:02:42.7]} 12. h5 {[%clk 0:01:48.3]} 12... Nge7
{[%clk 0:02:42.6]} 13. Bg5 {[%clk 0:01:46.9]} 13... h6 {[%clk 0:02:40]} 14. Bh4
{[%clk 0:01:38.7]} 14... Qe8 {[%clk 0:02:38.3]} 15. d5 {[%clk 0:01:36.8]} 15...
Nb8 {[%clk 0:02:38.2]} 16. g4 {[%clk 0:01:32.9]} 16... Bb5 {[%clk 0:02:21]} 17.
b3 {[%clk 0:01:31.1]} 17... Bxe2 {[%clk 0:02:20]} 18. Qxe2 {[%clk 0:01:32]}
18... Nd7 {[%clk 0:02:20.1]} 19. f4 {[%clk 0:01:29.9]} 19... exf4 {[%clk
0:02:18.8]} 20. Rxf4 {[%clk 0:01:29.6]} 20... Nxd5 {[%clk 0:02:10]} 21. Rf5
{[%clk 0:01:26]} 21... N5f6 {[%clk 0:02:03.1]} 22. g5 {[%clk 0:01:20.8]} 22...
hxg5 {[%clk 0:01:58.6]} 23. Bxg5 {[%clk 0:01:20.9]} 23... Nh7 {[%clk 0:01:47.3]}
24. Bd2 {[%clk 0:01:01.2]} 24... Ne5 {[%clk 0:01:31.1]} 25. Kh1 {[%clk
0:00:33.8]} 25... Qc6 {[%clk 0:01:21.4]} 26. c4 {[%clk 0:00:29.7]} 26... g6
{[%clk 0:00:54.3]} 27. Rf2 {[%clk 0:00:20.7]} 27... Rae8 {[%clk 0:00:47.4]} 28.
Bh6 {[%clk 0:00:17.9]} 28... Qc5 {[%clk 0:00:35.5]} 29. Bxf8 {[%clk 0:00:17.2]}
29... Nxf8 {[%clk 0:00:36.2]} 30. Raf1 {[%clk 0:00:17.1]} 30... Nc6 {[%clk
0:00:30.4]} 31. Rxf7 {[%clk 0:00:14.7]} 31... Qxh5+ {[%clk 0:00:30.2]} 32. Qxh5
{[%clk 0:00:14.5]} 32... gxh5 {[%clk 0:00:30.8]} 33. Rxc7 {[%clk 0:00:14.3]}
33... Ne6 {[%clk 0:00:24.7]} 34. Rxb7 {[%clk 0:00:10.6]} 34... Ng5 {[%clk
0:00:24.7]} 35. Rxb6 {[%clk 0:00:07.2]} 35... Ne5 {[%clk 0:00:20.6]} 36. Rxd6
{[%clk 0:00:07.1]} 36... Ng4 {[%clk 0:00:18.4]} 37. Rg6+ {[%clk 0:00:06.4]}
37... Kh7 {[%clk 0:00:17.2]} 38. Rxg5 {[%clk 0:00:06.9]} 38... Kh6 {[%clk
0:00:15.5]} 39. Rb5 {[%clk 0:00:04.1]} 39... Ne3 {[%clk 0:00:15]} 40. Rb6+
{[%clk 0:00:04]} 40... Kg5 {[%clk 0:00:14.5]} 41. Rf5+ {[%clk 0:00:04.2]} 41...
Nxf5 {[%clk 0:00:13.6]} 42. exf5 {[%clk 0:00:04.8]} 42... Kxf5 {[%clk 0:00:14]}
43. Rb5+ {[%clk 0:00:05.1]} 43... Kg4 {[%clk 0:00:14.2]} 44. Kh2 {[%clk
0:00:04.1]} 44... h4 {[%clk 0:00:14.2]} 45. Rb7 {[%clk 0:00:03.5]} 45... Re2
{[%clk 0:00:13.7]} 46. Rg7+ {[%clk 0:00:04]} 46... Kf5 {[%clk 0:00:12.7]} 47. a4
{[%clk 0:00:03.9]} 47... Rb2 {[%clk 0:00:12.4]} 48. Rb7 {[%clk 0:00:03.8]} 48...
Ke5 {[%clk 0:00:12]} 49. Kh3 {[%clk 0:00:03.4]} 49... Kd4 {[%clk 0:00:10.3]} 50.
Bd5 {[%clk 0:00:03.3]} 50... Kc5 {[%clk 0:00:09.8]} 51. Kxh4 {[%clk 0:00:03.6]}
51... Rb1 {[%clk 0:00:09.5]} 52. Kg5 {[%clk 0:00:04.1]} 52... Rf1 {[%clk
0:00:09.4]} 53. Kg4 {[%clk 0:00:03.4]} 53... Rb1 {[%clk 0:00:08]} 54. Kg3 {[%clk
0:00:03.7]} 54... Rb2 {[%clk 0:00:05.9]} 55. Kf4 {[%clk 0:00:03.9]} 55... Rb1
{[%clk 0:00:06.6]} 56. Ke5 {[%clk 0:00:04.1]} 56... Rb2 {[%clk 0:00:07.2]} 57.
Be4 {[%clk 0:00:04.5]} 57... Rb1 {[%clk 0:00:07.7]} 58. Rb5# {[%clk 0:00:04.6]}
1-0

[Event "Late-Titled-Tuesday-Blitz-February-27-2024"]
[Site "Chess.com"]
[Date "2024.02.27"]
[Round "5"]
[White "aghasiyevkamal"]
[Black "The_Machine04"]
[Result "0-1"]
[WhiteElo "2620"]
[BlackElo "2814"]
[TimeControl "180+1"]
[EndTime "14:57:12 PST"]
[Termination "The_Machine04 won by resignation"]

1. d4 {[%clk 0:03:00.1]} 1... d6 {[%clk 0:02:52.2]} 2. Nf3 {[%clk 0:02:54.9]}
2... Nf6 {[%clk 0:02:52.1]} 3. g3 {[%clk 0:02:51.6]} 3... Nbd7 {[%clk
0:02:50.3]} 4. Bg2 {[%clk 0:02:51.4]} 4... e5 {[%clk 0:02:50.9]} 5. O-O {[%clk
0:02:50.9]} 5... Be7 {[%clk 0:02:51]} 6. c4 {[%clk 0:02:50.5]} 6... O-O {[%clk
0:02:50.2]} 7. Nc3 {[%clk 0:02:50.5]} 7... c6 {[%clk 0:02:49.4]} 8. e4 {[%clk
0:02:48.9]} 8... a6 {[%clk 0:02:49.3]} 9. Re1 {[%clk 0:02:47.6]} 9... b5 {[%clk
0:02:48]} 10. a3 {[%clk 0:02:42.6]} 10... Bb7 {[%clk 0:02:45.5]} 11. cxb5 {[%clk
0:02:37.6]} 11... cxb5 {[%clk 0:02:42.3]} 12. Nh4 {[%clk 0:02:22.4]} 12... Re8
{[%clk 0:02:39.2]} 13. Nf5 {[%clk 0:02:20.9]} 13... Bf8 {[%clk 0:02:39.6]} 14.
Nd5 {[%clk 0:01:58.6]} 14... Nxd5 {[%clk 0:02:30.4]} 15. exd5 {[%clk 0:01:58.5]}
15... Nf6 {[%clk 0:02:22.8]} 16. dxe5 {[%clk 0:01:05.9]} 16... dxe5 {[%clk
0:02:23.7]} 17. Bg5 {[%clk 0:00:49.4]} 17... h6 {[%clk 0:02:18.4]} 18. Bxf6
{[%clk 0:00:46.2]} 18... Qxf6 {[%clk 0:02:19.3]} 19. Ne3 {[%clk 0:00:46.8]}
19... Bc5 {[%clk 0:02:10.2]} 20. Rc1 {[%clk 0:00:43.7]} 20... Bd4 {[%clk
0:02:08.7]} 21. Rc7 {[%clk 0:00:42.7]} 21... Qb6 {[%clk 0:02:06.4]} 22. Rxb7
{[%clk 0:00:38.8]} 22... Qxb7 {[%clk 0:02:05.2]} 23. d6 {[%clk 0:00:39.3]} 23...
Qd7 {[%clk 0:02:00.1]} 24. Bxa8 {[%clk 0:00:39.3]} 24... Rxa8 {[%clk 0:02:01]}
25. Qf3 {[%clk 0:00:39]} 25... Rd8 {[%clk 0:01:42.3]} 26. Nf5 {[%clk 0:00:39]}
26... g6 {[%clk 0:01:27.2]} 27. Nxd4 {[%clk 0:00:20.3]} 27... exd4 {[%clk
0:01:28.1]} 28. Re7 {[%clk 0:00:20.4]} 28... Qf5 {[%clk 0:01:27]} 29. Qc6 {[%clk
0:00:16.5]} 29... Kg7 {[%clk 0:00:30.8]} 30. d7 {[%clk 0:00:15.2]} 30... d3
{[%clk 0:00:23.9]} 31. Qd6 {[%clk 0:00:15.2]} 31... Qf6 {[%clk 0:00:19.5]} 32.
Qxf6+ {[%clk 0:00:05.3]} 32... Kxf6 {[%clk 0:00:20.4]} 33. Re1 {[%clk
0:00:05.1]} 33... Rxd7 {[%clk 0:00:20.4]} 34. Kg2 {[%clk 0:00:04.6]} 34... d2
{[%clk 0:00:15.8]} 35. Rd1 {[%clk 0:00:04.9]} 35... Ke5 {[%clk 0:00:04.8]} 36.
Kf3 {[%clk 0:00:04.8]} 36... Rd3+ {[%clk 0:00:03.2]} 37. Ke2 {[%clk 0:00:05]}
37... Ke4 {[%clk 0:00:02.5]} 38. Rxd2 {[%clk 0:00:05.1]} 38... Rxd2+ {[%clk
0:00:02.3]} 39. Kxd2 {[%clk 0:00:05.6]} 39... Kf3 {[%clk 0:00:02.9]} 40. Ke1
{[%clk 0:00:06.2]} 40... g5 {[%clk 0:00:02.3]} 41. Kf1 {[%clk 0:00:06.4]} 41...
g4 {[%clk 0:00:02.6]} 42. Kg1 {[%clk 0:00:04.9]} 42... Ke2 {[%clk 0:00:02.7]}
43. Kg2 {[%clk 0:00:05.2]} 43... h5 {[%clk 0:00:03.3]} 44. Kg1 {[%clk
0:00:05.1]} 44... a5 {[%clk 0:00:03.2]} 45. Kg2 {[%clk 0:00:05.1]} 45... a4
{[%clk 0:00:03.7]} 46. Kg1 {[%clk 0:00:05.2]} 46... Kd2 {[%clk 0:00:03.9]} 47.
f4 {[%clk 0:00:05.4]} 47... gxf3 {[%clk 0:00:03.5]} 48. Kf2 {[%clk 0:00:04]}
48... Kc2 {[%clk 0:00:04.4]} 49. Kxf3 {[%clk 0:00:04.5]} 49... Kxb2 {[%clk
0:00:04.8]} 50. g4 {[%clk 0:00:05.4]} 50... hxg4+ {[%clk 0:00:04.9]} 51. Kxg4
{[%clk 0:00:06.3]} 51... Kxa3 {[%clk 0:00:05.7]} 52. h4 {[%clk 0:00:07.2]} 52...
b4 {[%clk 0:00:06.1]} 53. h5 {[%clk 0:00:08.1]} 53... b3 {[%clk 0:00:07]} 54. h6
{[%clk 0:00:08.9]} 54... b2 {[%clk 0:00:07.9]} 55. h7 {[%clk 0:00:09.8]} 55...
b1=Q {[%clk 0:00:08.4]} 56. h8=Q {[%clk 0:00:10.3]} 56... Qg6+ {[%clk
0:00:09.3]} 57. Kf3 {[%clk 0:00:10.2]} 57... Qe6 {[%clk 0:00:10.2]} 58. Qe8
{[%clk 0:00:09.7]} 58... Qb3+ {[%clk 0:00:11.1]} 59. Ke2 {[%clk 0:00:09.3]}
59... Ka2 {[%clk 0:00:10.9]} 60. Qe5 {[%clk 0:00:08.6]} 60... a3 {[%clk
0:00:11.7]} 61. Kd2 {[%clk 0:00:08.3]} 61... Qb2+ {[%clk 0:00:12.3]} 0-1